Workbook

Sheet Expenses
F4: Index | G4: Category | H4: Amount | I4: Allowable | J4: Proposed
F5: 35 | G5: Food, Clothing and Misc. | H5: =SUMIF(Table1[Category],Table2[[#This Row],[Category]],Table1[Amount]) -> 1000 | I5: 1677 | J5: 1677
B6: Expense | C6: Amount | D6: Category | F6: 36 | G6: Housing and Utilities | H6: =SUMIF(Table1[Category],Table2[[#This Row],[Category]],Table1[Amount]) -> 3186 | I6: 2125 | J6: 2125
B7: Child Support | C7: 600 | D7: Court Ordered Payment | F7: 37 | G7: Vehicle Ownership Costs | H7: =SUMIF(Table1[Category],Table2[[#This Row],[Category]],Table1[Amount]) -> 880 | I7: 1238 | J7: 880
B8: Mortgage | C8: 2576 | D8: Housing and Utilities | F8: 38 | G8: Vehicle Operating Costs | H8: =SUMIF(Table1[Category],Table2[[#This Row],[Category]],Table1[Amount]) -> 590 | I8: 478 | J8: 478
B9: Life Ins | C9: 127 | D9: Life Insurance | F9: 39 | G9: Public Transportation | H9: =SUMIF(Table1[Category],Table2[[#This Row],[Category]],Table1[Amount]) -> 0
B10: Health Ins | C10: 410 | D10: Health Insurance | F10: 40 | G10: Health Insurance | H10: =SUMIF(Table1[Category],Table2[[#This Row],[Category]],Table1[Amount]) -> 410 | J10: 410
B11: Wage taxes | C11: 1205 | D11: Current year taxes (Income/FICA) | F11: 41 | G11: Out of Pocket Health Care Costs | H11: =SUMIF(Table1[Category],Table2[[#This Row],[Category]],Table1[Amount]) -> 100 | I11: 249 | J11: 249
B12: FICA | C12: 642 | D12: Current year taxes (Income/FICA) | F12: 42 | G12: Court Ordered Payment | H12: =SUMIF(Table1[Category],Table2[[#This Row],[Category]],Table1[Amount]) -> 600 | J12: 600
B13: Tax Prep | C13: 25 | D13: Other Expenses (Attach list) | F13: 43 | G13: Child/Dependent Care | H13: =SUMIF(Table1[Category],Table2[[#This Row],[Category]],Table1[Amount]) -> 0
B14: Food | C14: 1000 | D14: Food, Clothing and Misc. | F14: 44 | G14: Life Insurance | H14: =SUMIF(Table1[Category],Table2[[#This Row],[Category]],Table1[Amount]) -> 127 | J14: 127
B15: Electric, etc | C15: 360 | D15: Housing and Utilities | F15: 45 | G15: Current year taxes (Income/FICA) | H15: =SUMIF(Table1[Category],Table2[[#This Row],[Category]],Table1[Amount]) -> 1847 | J15: 1847
B16: Tel, Cell, Internet | C16: 250 | D16: Housing and Utilities | F16: 46 | G16: Secured Debts (Attach list) | H16: =SUMIF(Table1[Category],Table2[[#This Row],[Category]],Table1[Amount]) -> 0
B17: Veh 1 Pmt | C17: 330 | D17: Vehicle Ownership Costs | F17: 47 | G17: Delinquent State or Local Tax | H17: =SUMIF(Table1[Category],Table2[[#This Row],[Category]],Table1[Amount]) -> 0
B18: Veh 2 Pmt | C18: 550 | D18: Vehicle Ownership Costs | F18: 48 | G18: Other Expenses (Attach list) | H18: =SUMIF(Table1[Category],Table2[[#This Row],[Category]],Table1[Amount]) -> 25 | J18: 25
B19: Veh Operating | C19: 590 | D19: Vehicle Operating Costs | F19: 49 | G19: Total Living Expenses (add lines 35-48) | H19: =SUMIF(Table1[Category],Table2[[#This Row],[Category]],Table1[Amount]) -> 0
B20: OOP Healthcare | C20: 100 | D20: Out of Pocket Health Care Costs | F20: 50 | G20: Net difference (Line 34 minus 49) | H20: =SUMIF(Table1[Category],Table2[[#This Row],[Category]],Table1[Amount]) -> 0
G22: Total | H22: =SUM(H5:H20) -> 8765 | J22: =SUM(J5:J20) -> 8418

Sheet Income
A1: From Bank Statements | K1: From pay stubs
M2: YTD | N2: Daily | O2: Weekly | P2: Bi-weekly | Q2: Monthly | R2: Annual
B3: Average: | C3: =AVERAGE(F8:F10) -> 6988.236667 | K3: Averra as of 11/29/2024 | L3: Gross Pay | M3: 49527 | N3: 148.73 | O3: 1041.11 | P3: 2082.22 | Q3: 4523.86 | R3: 54286.35
L4: W-4 WH | M4: 5253 | N4: 15.77 | O4: 110.42 | P4: 220.85 | Q4: 479.82 | R4: 5757.79
A5: Interstate
A6: Date | B6: Payer | C6: Amount | D6: Month | E6: Total per Month | H6: Average pay per spouse, monthly | K6: Titan as of 02/17/2024 | L6: Gross Pay | M6: 8165 | N6: 173.72 | O6: 1216.06 | P6: 2432.13 | Q6: 5284.09 | R6: 63409.04
A7: 2024-08-23 | B7: Titan | C7: 2058.4 | D7: =MONTH(A7) -> 8 | L7: W-4 WH | M7: 1120 | N7: 23.83 | O7: 166.81 | P7: 333.62 | Q7: 724.82 | R7: 8697.87
A8: 2024-08-23 | B8: Averra | C8: 2264.84 | D8: =MONTH(A8) -> 8 | E8: 9 | F8: =SUMIF($D$7:$D$20,E8,$C$7:$C$20) -> 8949.44 | H8: Titan | I8: =SUMIF($B$9:$B$20,H8,$C$9:C20)/3 -> 3187.21 | L8: Dental | M8: 114 | N8: 2.43 | O8: 16.98 | P8: 33.96 | Q8: 73.78 | R8: 885.32
A9: 2024-09-06 | B9: Titan | C9: 3390.35 | D9: 9 | E9: 10 | F9: 6004.9 | H9: Averra | I9: =SUMIF($B$9:$B$20,H9,$C$9:C21)/3 -> 3801.026667 | L9: Life | M9: 196 | N9: 4.17 | O9: 29.19 | P9: 58.38 | Q9: 126.84 | R9: 1522.13
A10: 2024-09-06 | B10: Averra | C10: 2299.45 | D10: 9 | E10: 11 | F10: 6010.37 | H10: Total Income | I10: =SUM(I8:I9) -> 6988.236667 | L10: Health | M10: 519 | N10: 11.04 | O10: 77.3 | P10: 154.6 | Q10: 335.88 | R10: 4030.53
A11: 2024-09-20 | B11: Titan | C11: 1233.74 | D11: 9
A12: 2024-09-20 | B12: Averra | C12: 2025.9 | D12: 9 | L12: Total: | N12: =SUM(N3,N6) -> 322.45 | O12: 2257.17 | P12: 4514.35 | Q12: 9807.95 | R12: 117695.39
A13: 2024-10-04 | B13: Titan | C13: 1243.06 | D13: 10 | L13: W-4 WH | N13: 39.6 | O13: 277.23 | P13: 554.47 | Q13: 1204.64 | R13: 14455.66
A14: 2024-10-04 | B14: Averra | C14: 1659.84 | D14: 10 | L14: Med Ins | N14: =SUM(N8,N10) -> 13.47 | O14: =SUM(O8,O10) -> 94.28 | P14: 188.56 | Q14: 409.66 | R14: 4915.85
A15: 2024-10-18 | B15: Titan | C15: 1216.58 | D15: 10 | L15: Life Ins | N15: =N9 -> 4.17 | O15: =O9 -> 29.19 | P15: 58.38 | Q15: 126.84 | R15: 1522.13
A16: 2024-10-18 | B16: Averra | C16: 1885.42 | D16: 10
A17: 2024-11-01 | B17: Titan | C17: 1248.59 | D17: 11
A18: 2024-11-01 | B18: Averra | C18: 1747.01 | D18: 11
A19: 2024-11-15 | B19: Titan | C19: 1229.31 | D19: 11
A20: 2024-11-15 | B20: Averra | C20: 1785.46 | D20: 11
K28: Avera Bank | L28: =I9 -> 3801.026667 | N28: WH
K29: Avera Stub | L29: =Q3 -> 4523.86 | N29: =Q4/Q3 -> 0.1060642902 | O29: =L30*N29 -> 441.4865978
L30: =AVERAGE(L28:L29) -> 4162.443333
K33: Titan, Bank | L33: =I8 -> 3187.21
K34: Titan, Stub | L34: =Q6 -> 5284.09 | N34: =Q7/Q6 -> 0.1371702602 | O34: =L35*N34 -> 581.0052124
L35: =AVERAGE(L33:L34) -> 4235.65
L37: =SUM(L30,L35) -> 8398.093333
